Cogmind - Beta 15 @@@ ROGUE MODE // 2025.08.09 @ 20:17:04 Player: Wall-e Result: Self-destructed Performance ------------- Evolutions (4) 2000 Regions Visited (6) 1200 Robots Destroyed (219) 1095 Value Destroyed (5248) 5248 Prototype IDs (9) 180 Alien Tech Used (0) 0 Bonus (771) 771 TOTAL SCORE: 10494 Bonus ------- High Alert Combat Kills 320 Follower Combat Kills 451 Cogmind --------- Core Integrity 540/850 Matter 295/300 Energy 100/100 System Corruption 0% Temperature Cool (0) Movement Core (900) Ox17 Location -6/Factory Parts ------- > --- POWER (1) -------- (None) > --- PROPULSION (5) --- (None) > --- UTILITY (7) ------ High-capacity Storage Unit Improved Signal Interpreter Advanced Terrain Scan Processor Microactuators Hardened Medium Armor Plating System Shield > --- WEAPON (2) ------- Power Maul > --- INVENTORY (20) --- Cooled Deuterium Engine Angular Momentum Engine Improved Cooling System Large Storage Unit Enhanced Optical Array Improved Sensor Array Improved Terrain Scanner Core Analyzer Actuator Array Transmission Jammer Advanced ECM Suite Hacking Suite Hacking Suite System Shield Gauss Rifle Gauss Rifle Missile Launcher Improved Datajack Power Maul Power Maul Peak State ------------ > --- POWER ------------ Cooled Deuterium Engine > --- PROPULSION ------- Wheel Wheel Wheel Wheel Compact Wheel > --- UTILITY ---------- High-capacity Storage Unit Improved Sensor Array Improved Signal Interpreter Improved Terrain Scanner Advanced Terrain Scan Processor Transmission Jammer Hacking Suite > --- WEAPON ----------- Power Maul Power Maul > --- INVENTORY -------- Cooled Deuterium Engine Improved Cooling System Large Storage Unit Core Analyzer Microactuators Actuator Array Advanced ECM Suite Hardened Medium Armor Plating Hacking Suite Hacking Suite System Shield System Shield Gauss Rifle Gauss Rifle Missile Launcher Improved Datajack Power Maul Power Maul [Rating: 45] Favorites ----------- Power Micro Nuclear Core Engine Cooled Deuterium Engine Power Core Micro Nuclear Core Propulsion Wheel Leg Titanium Leg Wheel Wheel Flight Unit Improved Flight Unit Utility High-capacity Storage Unit Device Improved Sensor Array Storage High-capacity Storage Unit Processor Improved Signal Interpreter Hackware Hacking Suite Protection Powered Armor Weapon Heavy Assault Rifle Energy Gun Particle Gun Energy Cannon Advanced Beam Cannon Ballistic Gun Heavy Assault Rifle Ballistic Cannon Light Cannon Launcher Missile Launcher Impact Weapon Mace Slashing Weapon Axe Build | -11 -10 -9 -8 -7 -7 -6 ------- Run | Yrd Mat Mat Mat Fac Sto Fac Slots Evolved 8 | . . 2 2 2 . 2 Power . | . . . . . . . Propulsion 3 | . . 1 1 1 . . Utility 5 | . . 1 1 1 . 2 Weapon . | . . . . . . . Parts Attached 135 | 10 11 24 31 25 30 4 Power 16 | 1 2 3 2 4 4 . Engine 8 | 1 1 3 . 1 2 . Core 8 | . 1 . 2 3 2 . Reactor . | . . . . . . . Propulsion 56 | 4 5 10 12 10 15 . Treads . | . . . . . . . Leg 2 | . . . 2 . . . Wheel 52 | 4 5 9 9 10 15 . Hover . | . . . . . . . Flight 2 | . . 1 1 . . . Utility 30 | 2 2 3 9 6 4 4 Device 17 | 1 . 2 6 3 3 2 Storage 3 | 1 1 1 . . . . Processor 5 | . 1 . 2 1 . 1 Hackware 2 | . . . 1 . . 1 Protection 3 | . . . . 2 1 . Artifact . | . . . . . . . Weapon 33 | 3 2 8 8 5 7 . Energy Gun 5 | . . 2 3 . . . Energy Cannon 6 | . . . 4 2 . . Ballistic Gun 10 | 3 . 4 . 1 2 . Ballistic Cannon 3 | . 1 1 . 1 . . Launcher 3 | . 1 1 1 . . . Special Weapon . | . . . . . . . Impact Weapon 3 | . . . . . 3 . Slashing Weapon 3 | . . . . 1 2 . Piercing Weapon . | . . . . . . . Special Melee Weapon . | . . . . . . . Unidentified Prototypes 8 | . . 3 3 . 2 . Corrupted Parts 1 | . . . 1 . . . System Corruption 3 | . . . 3 . . . Parts Lost 46 | . 1 3 11 12 12 7 Power 5 | . . . 1 2 1 1 Propulsion 31 | . 1 2 5 8 10 5 Utility 7 | . . 1 3 1 1 1 Weapon 3 | . . . 2 1 . . Highest Loss Streak 5 | . 1 3 3 4 5 3 To Critical Strikes 1 | . . . . 1 . . Average Backups 15 | 1 8 10 17 19 19 18 Power 1 | . 1 . 2 1 1 1 Propulsion 1 | . 2 1 1 . . . Utility 7 | . 3 3 7 10 12 11 Weapon 3 | . 1 3 5 4 3 5 Tool/Special . | . . . . . . . Unused Backups 32 | 1 1 6 6 4 2 12 Power 5 | 1 . 1 1 1 . 1 Propulsion 2 | . 1 . 1 . . . Utility 15 | . . 2 . 3 1 9 Weapon 7 | . . 2 3 . 1 1 Tool/Special 3 | . . 1 1 . . 1 Average Slot Usage (%) 93 | . 94 95 91 91 93 91 Engine 5 | . 9 10 . 1 6 5 Core 2 | . . . 8 4 . . Wheel 30 | . 27 30 27 33 32 26 Device 9 | . . 9 8 13 13 12 Storage 9 | . 14 11 9 7 7 6 Processor 10 | . 13 11 15 7 7 12 Hackware 3 | . . . 2 7 7 10 Energy Gun 1 | . . 2 2 . . . Energy Cannon 2 | . . . 9 5 . . Ballistic Gun 7 | . 24 11 6 1 . . Ballistic Cannon 2 | . 2 7 . 1 . . Impact Weapon 1 | . . . . . 3 12 Slashing Weapon 2 | . . . . 1 11 . Peak Build Rating 45 | 9 9 16 34 39 39 45 Average Rating 25 | 5 7 13 25 35 35 42 On Entrance 18 | . 9 8 15 31 31 38 Naked Turns . | . . . . . . . Heaviest Build 70 | 13 19 55 57 70 68 67 Greatest Support 62 | 32 20 30 48 52 62 56 Greatest Overweight (x) 21 | . 1 2 4 2 5 21 Average Overweight (x) . | . . . 1 1 . 1 Largest Inventory Capacity 20 | 8 10 20 20 20 20 20 Average Capacity 16 | 7 9 12 20 20 20 20 Most Carried 20 | 3 10 13 20 20 20 20 Average Carried 15 | 1 8 10 17 19 19 18 Final Capacity 20 | 8 10 20 20 20 20 20 Final Carried 20 | 3 10 13 20 20 20 20 Class Distribution -------------------- 60% | Scavenger-Mutant 34% | Mutant Dominant Class ---------------- Mutant | -10/Materials Scavenger-Mutant | -9/Materials Mutant | -8/Materials Scavenger-Mutant | -7/Factory Scavenger-Mutant | -7/Storage Scavenger-Assassin | -6/Factory Resources | -11 -10 -9 -8 -7 -7 -6 ----------- Run | Yrd Mat Mat Mat Fac Sto Fac Matter Collected 4000 | 336 440 1136 604 721 678 85 Remotely . | . . . . . . . Salvage Created 7475 | 164 435 1538 1810 1579 1764 185 Parts 420 | 11 24 130 85 88 81 1 Haulers Intercepted 15 | . 1 6 2 1 5 . Recyclers Shooed 14 | 1 1 5 6 . 1 . Parts Field Recycled . | . . . . . . . Retrieved Matter . | . . . . . . . Parts Self-Destructed . | . . . . . . . Prevented . | . . . . . . . Kills | -11 -10 -9 -8 -7 -7 -6 ------- Run | Yrd Mat Mat Mat Fac Sto Fac Combat Hostiles Destroyed 114 | . 9 34 26 27 15 3 Melee 21 | . . . . 6 15 . Guns 31 | . 5 14 8 4 . . Cannons 40 | . 1 15 14 10 . . AOE 17 | . 3 5 3 6 . . Classes Destroyed 14 | 2 5 4 2 1 . . Worker 25 | . 1 3 2 8 11 . Builder 22 | . . 6 6 7 3 . Tunneler 8 | 4 . 2 . 2 . . Hauler 15 | . 1 6 2 1 5 . Recycler 12 | 1 . . 3 3 5 . Mechanic 2 | . . 1 . . 1 . Operator 6 | . 1 3 1 . 1 . Watcher 15 | . 2 5 4 3 1 . Swarmer 30 | . . 17 4 6 3 . Grunt 58 | . 9 10 17 15 4 3 Duelist 2 | . . . 1 1 . . Sentry 16 | . . 7 2 2 5 . Hunter 4 | . . . 2 1 1 . Programmer 4 | . . . . 2 2 . Best Kill Streak 10 | 5 4 6 10 7 4 3 Combat Bots Only 7 | . 2 6 5 7 2 3 Max Kills in Single Turn 3 | 2 1 2 3 2 1 1 Gunslinging . | . . . . . . . Exploded 2 | . 1 1 2 2 . . Melee 1 | . . . . 1 1 . Uniques/NPCs Destroyed . | . . . . . . . Combat | -11 -10 -9 -8 -7 -7 -6 -------- Run | Yrd Mat Mat Mat Fac Sto Fac Hostile Shots Fired 832 | . 45 146 186 193 213 49 Missed 248 | . 18 45 46 66 59 14 Hits 584 | . 27 101 140 127 154 35 Melee 3 | . . . 1 2 . . Projectile 581 | . 27 101 139 125 154 35 AOE 4 | . . . . . . 4 Critical Strikes 21 | . 1 2 8 6 1 3 Part Disruptions 1 | . . . . 1 . . Damage Taken 7143 | . 378 1035 1993 1501 1314 922 Core 1776 | . 71 263 538 309 285 310 Absorbed by Shields 260 | . . . . 260 . . Redirected to Shielding 15 | . . . . 15 . . Regen/Repaired (Parts) 168 | . . 134 34 . . . Core Remaining (%) 44 | 100 71 34 2 . 15 . Volleys Fired 444 | 6 48 130 149 111 . . Largest 2 | 2 2 2 2 2 . . Hottest 136 | 40 50 130 136 136 . . Shots Fired 777 | 12 88 249 270 158 . . Gun 334 | 12 60 140 88 34 . . Cannon 404 | . 20 98 176 110 . . Launcher 39 | . 8 11 6 14 . . Special . | . . . . . . . Kinetic 440 | 12 80 212 60 76 . . Thermal 298 | . . 26 204 68 . . Explosive 24 | . 8 1 1 14 . . Electromagnetic 15 | . . 10 5 . . . Robot Hit Streak 25 | 4 8 25 12 11 . . Robot Miss Streak 7 | 2 4 7 6 4 . . Penetration Max 1 | . . . . 1 . . Secondary Targets 3 | . 1 . 2 . . . Max Gunslinging Chain 1 | . 1 . 1 . . . Shots Hit Robots 617 | 7 57 153 163 128 102 7 Core Hits 278 | 6 30 69 66 69 38 . Critical Kills 2 | . . . 1 1 . . Critical Parts Destroyed 6 | . 1 . . . 2 3 Critical Strikes 32 | . 2 4 2 4 17 3 Burn 3 | . . 2 1 . . . Meltdown 1 | . . . 1 . . . Destroy 2 | . 1 . . 1 . . Blast 5 | . 1 2 . 2 . . Smash 5 | . . . . . 2 3 Sever 16 | . . . . 1 15 . Melee Attacks 184 | . . . . 40 127 17 Impact 24 | . . . . . 7 17 Slashing 160 | . . . . 40 120 . Piercing . | . . . . . . . Sneak Attacks 39 | . . . . 8 31 . Combat Hostiles . | . . . . . . . Follow-up Attacks 13 | . . . . . 10 3 Damage Inflicted 17005 | 91 972 2632 3497 4814 4703 296 Guns 3361 | 91 577 1399 827 467 . . Cannons 5039 | . 159 1016 2089 1775 . . Explosions 2046 | . 236 217 581 1012 . . Melee 6559 | . . . . 1560 4703 296 Ramming . | . . . . . . . Kinetic 4692 | 91 736 2101 549 1215 . . Thermal 3820 | . . 327 2367 1126 . . Explosive 1245 | . 236 . 96 913 . . Electromagnetic 689 | . . 204 485 . . . Impact 432 | . . . . . 136 296 Slashing 6127 | . . . . 1560 4567 . Piercing . | . . . . . . . Highest Corruption 6 | . . . 5 6 6 . Average Corruption 4 | . . . 4 3 5 . Corruption Purged 5 | . . . . . 5 . Corruption Blocked . | . . . . . . . Effects 87 | . . . 17 27 43 . Message Errors 21 | . . . 5 6 10 . Matter Fused 22 | . . . 2 10 10 . Heat Flow Errors 9 | . . . 3 1 5 . Energy Discharges 9 | . . . 2 1 6 . Parts Rejected 3 | . . . 1 1 1 . Parts Fused 1 | . . . . . 1 . Data Loss (minor) 11 | . . . 2 2 7 . Data Loss (major) 3 | . . . 1 1 1 . Misfires 3 | . . . . 3 . . Alerts 3 | . . . 1 . 2 . Weapon Failures 2 | . . . . 2 . . Overload Shots . | . . . . . . . Overflow Damage 1199 | . . 13 43 410 614 119 Projectiles 107 | . . 10 43 54 . . Explosions 56 | . . 3 . 53 . . Melee 1036 | . . . . 303 614 119 Knockbacks 29 | . . 11 . 14 . 4 Impact 3 | . . . . . . 3 Kinetic 24 | . . 10 . 14 . . Secondary 2 | . . 1 . . . 1 Self-Inflicted Damage 24 | . . 7 17 . . . Shots 4 | . . 1 3 . . . Rammed . | . . . . . . . Targets Rammed . | . . . . . . . Kicked . | . . . . . . . Crushed . | . . . . . . . Highest Temperature 478 | . 20 279 478 72 236 293 Average Temperature 80 | . 5 73 95 25 90 127 Received Heat Transfer 2382 | . 225 222 918 281 228 508 Effects 7 | . . . 7 . . . Shutdowns 2 | . . . 2 . . . Energy Bleed 1 | . . . 1 . . . Interference 3 | . . . 3 . . . Damage (minor) 1 | . . . 1 . . . Siege Activations . | . . . . . . . Martial Activations . | . . . . . . . Shielding Activations . | . . . . . . . Robots Disrupted . | . . . . . . . Combat Hostiles . | . . . . . . . Robots Corrupted 4 | . . . . . 1 3 Combat Hostiles 3 | . . . . . . 3 Parts Fried 3 | . . . 3 . . . Impact Corruptions 7 | . . . . . 2 5 Robots Melted 2 | . . . 1 1 . . Combat Hostiles 2 | . . . 1 1 . . Parts Melted 11 | . . 5 4 2 . . Heat Transferred 7661 | . . 975 4773 1913 . . Parts Sabotaged . | . . . . . . . Parts Stolen . | . . . . . . . Parts Stripped . | . . . . . . . Power Chain Reactions 2 | . . 2 . . . . Alert | -11 -10 -9 -8 -7 -7 -6 ------- Run | Yrd Mat Mat Mat Fac Sto Fac Maximum Alert Level 2 | . . 2 2 2 2 1 Low Security (%) 28 | 100 100 30 25 9 . 38 Level 1 45 | . . 26 58 58 66 61 Level 2 25 | . . 42 16 32 33 . Level 3 . | . . . . . . . Level 4 . | . . . . . . . Level 5 . | . . . . . . . High Security . | . . . . . . . Max Security . | . . . . . . . Peak Influence 635 | 10 140 632 511 635 527 236 Initial 280 | . . 56 263 225 280 236 Average 299 | 2 31 364 274 363 394 200 Influence Increases 4723 | 25 377 1164 896 1033 1132 96 Destroy 0b10 Robot/C 2520 | . 180 680 520 540 540 60 Destroy 0b10 Robot/NC 535 | 25 25 130 90 120 145 . Destroy Leader 672 | . 56 182 122 118 184 10 Allied During Kill 138 | . . . . . 138 . Trap Triggered on 0b10 60 | . . 30 30 . . . Successful Hack 166 | . 37 22 38 . 47 22 Disable Machine 255 | . . 60 30 135 30 . Destroy Structure 182 | . 49 15 6 105 3 4 Partial Spotted 75 | . 30 30 . 15 . . Lose Combat Pursuer 120 | . . 15 60 . 45 . Influence Decreases 4601 | 25 243 673 1025 913 1227 495 Entered New Map 1332 | . . 78 362 271 336 285 Time Decay 2609 | 25 233 565 553 522 571 140 Lost Part 460 | . 10 30 110 120 120 70 Lost Ally 200 | . . . . . 200 . Squads Dispatched 29 | . 2 4 6 7 10 . Investigation 4 | . . 2 1 . 1 . Extermination 6 | . . . . 2 4 . Reinforcement 18 | . 2 2 5 4 5 . Assault . | . . . . . . . Garrison 1 | . . . . 1 . . Intercept . | . . . . . . . Searches Triggered . | . . . . . . . Construction Impeded 5 | . . . 3 2 . . Haulers Reinforced 5 | . . . . 1 4 . Active Scanning Responses . | . . . . . . . Cargo Convoy Interrupts . | . . . . . . . Stealth | -11 -10 -9 -8 -7 -7 -6 --------- Run | Yrd Mat Mat Mat Fac Sto Fac Distress Signals 10 | . 1 2 5 1 1 . Communications Jammed . | . . . . . . . Distress Signals . | . . . . . . . Times Spotted 179 | . 18 43 46 36 32 4 Peak Tracking Total 7 | . 3 5 7 4 3 3 Tactical Retreats 6 | . . 1 3 . 2 . Traps | -11 -10 -9 -8 -7 -7 -6 ------- Run | Yrd Mat Mat Mat Fac Sto Fac Traps Triggered 10 | . . 1 2 3 4 . Indirectly 1 | . . 1 . . . . Trap Hack Attempts . | . . . . . . . Triggered . | . . . . . . . Disarmed . | . . . . . . . Reprogrammed 19 | . 6 5 8 . . . Reused 6 | . . 3 3 . . . Traps Extracted . | . . . . . . . Installed . | . . . . . . . Triggered 6 | . . 3 3 . . . Machines | -11 -10 -9 -8 -7 -7 -6 ---------- Run | Yrd Mat Mat Mat Fac Sto Fac Machines Disabled 17 | . . 4 2 9 2 . Max in Single Turn 5 | . . 1 1 5 1 . Garrison Access 2 | . . . . 1 1 . Machines Repaired . | . . . . . . . Machines Dismantled . | . . . . . . . Machines Sabotaged . | . . . . . . . Overloaded Fab Kills . | . . . . . . . Hacking | -11 -10 -9 -8 -7 -7 -6 --------- Run | Yrd Mat Mat Mat Fac Sto Fac Machines Accessed 43 | . 7 10 10 1 14 1 Terminals 31 | . 5 7 7 . 11 1 Fabricators . | . . . . . . . Repair Stations 4 | . . 2 1 . 1 . Recycling Units 4 | . 2 . 1 . 1 . Scanalyzers 2 | . . 1 1 . . . Garrison Access 2 | . . . . 1 1 . Total Hacks 144 | . 29 38 40 1 33 3 Successful 86 | . 15 21 28 1 18 3 Failed 58 | . 14 17 12 . 15 . Catastrophic 7 | . 2 3 . . 2 . Database Lockouts . | . . . . . . . Manual 81 | . 22 11 31 . 14 3 Terminals 102 | . 19 25 34 . 21 3 Fabricators . | . . . . . . . Repair Stations 17 | . . 11 2 . 4 . Recycling Units 18 | . 10 . 2 . 6 . Scanalyzers 4 | . . 2 2 . . . Garrison Access 3 | . . . . 1 2 . Terminal Hacks 26 | . 4 4 13 . 5 . Robot Analysis 2 | . 2 . . . . . Prototype ID Bank 1 | . 1 . . . . . Open Door 4 | . . . . . 4 . Branch Access Points 2 | . . 1 1 . . . Locate Traps 1 | . . . . . 1 . Reprogram Traps 4 | . 1 1 2 . . . Zone Layout 12 | . . 2 10 . . . Fabricator Hacks . | . . . . . . . Repair Station Hacks 11 | . . 8 2 . 1 . Scan Component 6 | . . 4 1 . 1 . Repair 5 | . . 4 1 . . . Recycling Unit Hacks 4 | . 1 . . . 3 . Process 1 | . . . . . 1 . Retrieve Matter 3 | . 1 . . . 2 . Scanalyzer 4 | . . 2 2 . . . Insert Component 2 | . . 1 1 . . . Analyze 2 | . . 1 1 . . . Garrison Access Hacks 2 | . . . . 1 1 . Seal Access 2 | . . . . 1 1 . Unauthorized Hacks 39 | . 10 7 11 . 8 3 Terminals 31 | . 5 7 10 . 6 3 Track 5 | . 1 . 3 . . 1 Botnet 24 | . 4 6 7 . 6 1 Operators 2 | . . 1 . . . 1 Fabricators . | . . . . . . . Repair Stations . | . . . . . . . Recycling Units 8 | . 5 . 1 . 2 . Reject 4 | . 2 . 1 . 1 . Recyclers 2 | . 1 . . . 1 . Mask 2 | . 2 . . . . . Scanalyzers . | . . . . . . . Garrison Access . | . . . . . . . Data Cores Recovered . | . . . . . . . Used . | . . . . . . . Hacking Detections 37 | . 7 10 9 . 10 1 Full Trace Events 2 | . . 1 . . 1 . Feedback Events . | . . . . . . . Feedback Blocked . | . . . . . . . Robot Schematics Acquired . | . . . . . . . Robots Built . | . . . . . . . Authchips . | . . . . . . . Time . | . . . . . . . Total Robot Build Rating . | . . . . . . . Part Schematics Acquired 2 | . . 1 1 . . . Parts Built . | . . . . . . . Authchips . | . . . . . . . Time . | . . . . . . . Total Part Build Rating . | . . . . . . . Parts Repaired 5 | . . 4 1 . . . Time 167 | . . 141 26 . . . Parts Recycled . | . . . . . . . Recycled Matter 159 | . . . . . 159 . Retrieved Matter 216 | . 57 . . . 159 . Retrieved Components . | . . . . . . . Parts Scanalyzed 2 | . . 1 1 . . . Part Schematics Acquired 2 | . . 1 1 . . . Parts Damaged . | . . . . . . . Bothacking | -11 -10 -9 -8 -7 -7 -6 ------------ Run | Yrd Mat Mat Mat Fac Sto Fac Used RIF Installer . | . . . . . . . Robots Hacked . | . . . . . . . Non-combat . | . . . . . . . Combat . | . . . . . . . Robot Hacks Applied . | . . . . . . . Relay Couplers Released . | . . . . . . . Fabnet Peak Effective % . | . . . . . . . Robots Rewired . | . . . . . . . Allies Hacked . | . . . . . . . Hacks Repelled . | . . . . . . . Allies | -11 -10 -9 -8 -7 -7 -6 -------- Run | Yrd Mat Mat Mat Fac Sto Fac Total Allies 10 | . . . . . 10 . Largest Group 10 | . . . . . 10 . Highest-Rated Group 173 | . . . . . 173 . Highest-Rated Ally 29 | . . . . . 29 . Total Orders . | . . . . . . . Ally Attacks 110 | . . . . . 110 . Total Damage 1341 | . . . . . 1341 . Kills 13 | . . . . . 13 . Allies Corrupted . | . . . . . . . Allies Melted . | . . . . . . . Intel | -11 -10 -9 -8 -7 -7 -6 ------- Run | Yrd Mat Mat Mat Fac Sto Fac Active Infowar (turns) 4765 | 15 6 1497 721 748 1524 254 Sensors 3296 | . . 502 721 748 1106 219 Terrain 1269 | 15 6 995 . . . 253 Jamming 1585 | . . . . . 1520 65 Robot Analysis Total 2 | . 2 . . . . . Derelict Logs Recovered . | . . . . . . . Drone Launches 2 | . . . . . 2 . Drone Recoveries . | . . . . . . . Exploration | -11 -10 -9 -8 -7 -7 -6 ------------- Run | Yrd Mat Mat Mat Fac Sto Fac Turns Passed 7869 | 88 1018 1683 1615 1451 1731 283 Spaces Moved 4710 | 52 744 1047 843 854 1038 132 Core 3 | 1 . . . . . 2 Treads . | . . . . . . . Legs 12 | . . . 12 . . . Wheels 4695 | 51 744 1047 831 854 1038 130 Hover . | . . . . . . . Flight . | . . . . . . . Fastest Speed 50 | 50 80 80 95 95 84 99 Average Speed 93 | 93 80 85 101 97 99 118 Slowest Speed 1100 | 100 95 110 340 110 155 1100 Overloaded Moves . | . . . . . . . Propulsion Burnouts . | . . . . . . . Robots Hopped . | . . . . . . . Potential Cave-ins . | . . . . . . . Cave-ins Triggered . | . . . . . . . Exploration Rate (%) 46 | 4 83 77 52 21 83 5 Regions Visited 6 Branch Regions 1 Pre-discovered Areas . | . . . . . . . Known Exits Taken 3 | . . . 1 1 1 . Unknown Exits Taken 3 | 1 1 1 . . . . Scrap Searched . | . . . . . . . Spaces Dug 21 | . . . . 14 3 4 Terrain Destroyed 213 | . 42 12 . 152 3 4 Melee 21 | . . . . 14 3 4 Projectile 4 | . . . . 4 . . AOE 188 | . 42 12 . 134 . . Terrain Rammed . | . . . . . . . Walls Destroyed . | . . . . . . . Machines Disabled . | . . . . . . . Actions | -11 -10 -9 -8 -7 -7 -6 --------- Run | Yrd Mat Mat Mat Fac Sto Fac Total 7070 | 76 1076 1592 1331 1230 1537 228 Wait 1351 | . 253 338 248 147 293 72 Move 4704 | 51 743 1046 842 853 1037 132 Hop . | . . . . . . . Pick Up 86 | 5 8 19 22 20 10 2 Fast Attach 73 | 8 2 10 22 10 21 . Attach 28 | . 1 5 6 8 5 3 Detach 5 | . 2 . 1 . 1 1 Swap 83 | 2 11 18 14 20 13 5 Drop 106 | 4 8 26 27 21 20 . Fire 444 | 6 48 130 149 111 . . Melee 163 | . . . . 40 110 13 Ram . | . . . . . . . Kick . | . . . . . . . Crush . | . . . . . . . Escape Stasis 19 | . . . . . 19 . Rewire 8 | . . . . . 8 . Trap . | . . . . . . . Miscellaneous . | . . . . . . . Route ------- -11/Scrapyard -10/Materials (discovered 4 exits: *Mat x2 / [*Min x2]) -9/Materials (discovered 5 exits: *Mat x3 / *Min x2) -8/Materials (discovered 2 exits: *Fac x2) -7/Factory -7/Storage -6/Factory History --------- Turn | Location | Event 19 | -11/Scrapyard | Discovered new exit (range 16) 89 | -11/Scrapyard | Entered Materials 312 | -10/Materials | Build established: Mutant 557 | -10/Materials | Discovered new exit (range 8) 775 | -10/Materials | Discovered new exit (range 8) 845 | -10/Materials | Discovered new exit (range 16) 1023 | -10/Materials | Discovered new exit (range 14) 1107 | -10/Materials | Entered another Materials area 1107 | -9/Materials | Evolved 2 slots: Propulsion x1, Utility x1 1333 | -9/Materials | Repaired Wheel 1373 | -9/Materials | Repaired Imp. Terrain Scanner 1389 | -9/Materials | Discovered new exit (range 7) 1499 | -9/Materials | Build established: Scavenger-Mutant 1823 | -9/Materials | Discovered new exit (range 3) 1904 | -9/Materials | Discovered new exit (range 16) 2117 | -9/Materials | Discovered new exit (range 16) 2148 | -9/Materials | Core integrity fell below 50% 2182 | -9/Materials | Lost 3 parts (2n1u) 2431 | -9/Materials | Build established: Mutant 2450 | -9/Materials | Identified exit to Mines 2560 | -9/Materials | Repaired Wheel 2613 | -9/Materials | Repaired Cld. Ion Engine 2660 | -9/Materials | Discovered new exit (range 11) 2790 | -9/Materials | Entered another Materials area 2790 | -8/Materials | Evolved 2 slots: Propulsion x1, Utility x1 2856 | -8/Materials | Repaired Wheel 3593 | -8/Materials | Lost 3 parts (2n1w) 3645 | -8/Materials | Core integrity fell below 50% 3669 | -8/Materials | Lost 3 parts (1p1n1u) 3778 | -8/Materials | Core integrity fell below 20% 4040 | -8/Materials | Discovered new exit (range 12) 4174 | -8/Materials | Build established: Scavenger-Mutant 4363 | -8/Materials | Discovered new exit (range 16) 4404 | -8/Materials | Identified exit to Factory 4405 | -8/Materials | Entered Factory 4405 | -7/Factory | Evolved 2 slots: Propulsion x1, Utility x1 4574 | -7/Factory | Found Powered Armor 4725 | -7/Factory | Garrison activated, responded to threat 5440 | -7/Factory | Lost 4 parts (1p2n1w) 5780 | -7/Factory | Destroyed 7 combat bots 5788 | -7/Factory | Lost 4 parts (1p2n1u) 5795 | -7/Factory | Discovered new exit (range 15) 5828 | -7/Factory | Identified exit to Storage 5856 | -7/Factory | Entered Storage 5872 | -7/Storage | Assisted by bots powering up and referring to "LRC-V3" 6054 | -7/Storage | Lost 3 allies 6323 | -7/Storage | Lost 3 allies 6402 | -7/Storage | Core integrity fell below 50% 6578 | -7/Storage | Lost 5 parts (4n1u) 7486 | -7/Storage | Core integrity fell below 20% 7583 | -7/Storage | Discovered new exit (range 5) 7586 | -7/Storage | Identified exit to Factory 7587 | -7/Storage | Entered Factory 7587 | -6/Factory | Evolved 2 slots: Utility x2 7811 | -6/Factory | Spotted B-75 Beast 7849 | -6/Factory | Lost 3 parts (3n) 7870 | -6/Factory | Self-destructed Last Messages --------------- 07812_ Fusion Modulator explodes. 07812_ Wheel destroyed. 07812_ Fabricator disabled. 07812_ Fusion Modulator explodes. 07812_ Com. Wheel destroyed. 07812_ U-05 Engineer destroyed. 07812_ Fusion Modulator explodes. 07818_ Wheel destroyed. 07824_ Acquired Angular Momentum Engine. 07849_ Critical hit (Meltdown: +310). 07849_ Wheel destroyed. 07849_ Power Maul blasted off. 07852_ Knocked back. 07859_ Cld. Deuterium Engine destroyed. 07859_ M-13 Machinist repairs B-75 Beast. 07861_ R-10 Processor collects Power Maul. 07862_ Knocked back. 07862_ Hacking Suite destroyed. 07868_ Knocked back. 07869_ M-13 Machinist repairs R-10 Processor. Map ----- +----------------------------------------------------+ | ?????????????????????????????????????????????????? | | ?????????????????????????????????????????????????? | | ?????????????????????????????????????????????????? | | ?????????????????????????????????????????????????? | | ?????????????????????????????????????????????????? | | ?????????????????????????????????????????????????? | | ?????????????????????????????????????????????????? | | ??????????????????????????????????????#??????????? | | ?????????????????????????????????######?###??????? | | ???????????????????????????????####?###?######???? | | ??????????????????#??#?#####?####?###??#########?? | | ?????????????????#####??##?#############?#?#####?? | | ???????????#???#?????##?#?##############?#######?# | | ???????????##???##??############;#####?########### | | ????????????????#???# ###?############# | | ???????????#?#??##??# ################# | | ???????????????#?#??# ######?#######?## | | ???????????#???###??# ################? | | ???????##?? ?? ????# ################# | | ??????????#?? ??#?#?# ################# | | ???????#??? ? ??### ################# | | ???????#???? ?? #?### ! ####?############ | | ???????#???? ###?# ###?############# | | ???????##??"""?""?### ##?## | | ????#??????# ???#??#; ** ##### [ | | ?????#???#??????#??## * @% ; # | | ??????? ? ??? #########%;;;;;;;;;;;;# | | ?????? ????#? ??####?#?#; % ; | | ???????"?? ? ####?####; ; | | ?????? ?"" ?? ?#?#???#?#; R %; | | ???????????????#########; m ; = | | ?????????? #???# ;BB ; | | ???????????# # ;BB = = ; | | ???????? ?? # """ ; ; = | | ?????????#??? # """ ; ; | | ???????????#? ?? """ ############ | | ?????????? ?? # ? "" | | ????????????? ?# "" | | ???????????????#??? ; | | ????????????????? ; """ | | ?????????????????#######;t " """ | | ???????????????????#???#" " """ | | ????????????????????#?? | | ??????????????????????? "" """ | | ???????????????????????#" """ """ | | ??????????????????????##" # """ """ | | ????????????????????????" ?"? # | | ?????????????????????????? """ ############# | | ?????????????????????????????? ??? ?############# | | ???????????????????????????????? ? ?# | +----------------------------------------------------+ Best States ------------- Heat Dissipation 48 Energy Generation 18 Energy Capacity 310 Matter Stores 300 Matter Capacity 300 Sight Range 16 Robot Scan Range 15 Terrain Scan Range 16 Terrain Scan Density 210 Jamming Range 12 Armor Coverage 400 Weapon Shielding 33 Melee Speed Boost 20 Evasion (%) 44 Targeting Accuracy 8 Energy Filtering 30 Offensive Hacking 10 Defensive Hacking 10 Item Schematics ----------------- Sml. Storage Unit | -9/Materials | Scanalyzed Lrg. Storage Unit | -8/Materials | Scanalyzed Robot Schematics ------------------ None Fabricated ------------ Nothing Repaired ---------- Wheel | 35% | -9/Materials Imp. Terrain Scanner | 45% | -9/Materials Wheel | 20% | -9/Materials Cld. Ion Engine | 41% | -9/Materials Wheel | 15% | -8/Materials Alien Tech Used ----------------- None Achievements -------------- None Challenges ------------ None Game ------ Seed QuantumSpacefoldSteel Manual? 0 Play Time 01:29:57 Cumulative 543.8 hours Start 2025.08.06 @ 19:37:29 End 2025.08.09 @ 20:17:04 Sessions 3 Manual Loads 0 Difficulty Rogue Special Mode None Game No. 205 Rogue 98 Adventurer 8 Explorer 99 Win Type - Total 17 Types 8/1/6/2/0/0/0/0/0/0 Lore% 53 Gallery% 65 Achievement% 79 Wizard Run 0 Options --------- Layout 1 ASCII 0 Keyboard 0 Movement Mouse Keybinds 0 Fullscreen 1 Font 24/Smallcaps Map View 50x35 Zoom Use 0% Tactical HUD 1 Map Filters NONE Filters NONE Steam 1 RUN: 486466b7-3b3a-4d1e-a66c-a818b8fc060e